bitfinex-derivatives/quotes_BTCF0:USTF0_20241214
["timestamp","ask_amount","ask_price","bid_price","bid_amount"]
[1734211892434,0.2169093,101170.0,101160.0,0.97857404]
[1734211895439,0.12812097,101170.0,101160.0,0.97857404]
[1734211895731,0.21691682,101170.0,101160.0,0.97857404]
[1734211897344,0.12812097,101170.0,101160.0,0.97857404]
[1734211898340,0.33771779,101170.0,101160.0,0.82303566]
[1734211898537,0.38714179,101170.0,101160.0,0.82303566]
[1734211898839,0.45084179,101170.0,101160.0,0.82303566]
[1734211899235,0.3892726,101170.0,101160.0,0.88460485]
[1734211900436,0.2708505,101170.0,101160.0,0.88460485]
[1734211901547,0.44867815,101170.0,101160.0,0.88460485]
[1734211903339,0.44867815,101170.0,101160.0,1.002366]
[1734211904438,0.44867815,101170.0,101160.0,0.70779821]
[1734211905252,0.51024734,101170.0,101160.0,0.64622902]
[1734211905551,0.51024734,101170.0,101160.0,0.70779821]
[1734211905748,0.44867815,101170.0,101160.0,0.70779821]
[1734211907450,0.2708505,101170.0,101160.0,0.70779821]
[1734211908946,0.33241969,101170.0,101160.0,0.64622902]
[1734211909658,0.87104734,101170.0,101160.0,0.28542902]
[1734211909953,0.72301971,101170.0,101160.0,0.46249717]
[1734211916355,0.87122329,101170.0,101160.0,0.46249717]
[1734211917360,0.87121969,101170.0,101160.0,0.46249717]
[1734211921360,0.72301971,101170.0,101160.0,0.22649715]
[1734211928061,0.36221971,101170.0,101160.0,0.22649715]
[1734211928263,0.72301971,101170.0,101160.0,0.22649715]
[1734211929168,0.66145052,101170.0,101160.0,0.22649715]
[1734211929867,0.72301971,101170.0,101160.0,0.22649715]
[1734211930271,0.72301971,101170.0,101160.0,0.46249717]
[1734211931270,0.36221971,101170.0,101160.0,0.46249717]
[1734211931572,0.72301971,101170.0,101160.0,0.46249717]
[1734211932772,0.72301971,101170.0,101160.0,0.22649715]
[1734211933467,0.72301971,101170.0,101160.0,0.17706815]
[1734211937574,0.72301971,101170.0,101160.0,0.41306817]
[1734211939070,0.72301971,101170.0,101160.0,0.17706815]
[1734211939271,0.60676125,101170.0,101160.0,0.17706815]
[1734211939578,0.60676125,101170.0,101140.0,1.15175464]
[1734211939579,0.049434,101150.0,101140.0,0.23600002]
[1734211939877,0.47180319,101150.0,101130.0,1.03666193]
[1734211940074,0.37568142,101140.0,101130.0,1.3360173]
[1734211940579,0.31625436,101140.0,101130.0,0.74209414]
[1734211941578,0.31625436,101140.0,101130.0,0.68052495]
[1734211941780,0.31625436,101140.0,101130.0,0.74209414]
[1734211942576,0.31625436,101140.0,101130.0,0.50609412]
[1734211942577,0.1679619,101140.0,101130.0,0.50609412]
[1734211942778,0.31625436,101140.0,101130.0,0.50609412]
[1734211943165,0.22953109,101140.0,101130.0,0.68052495]
[1734211943366,0.43939274,101140.0,101130.0,0.3936]
[1734211943578,0.32380028,101140.0,101130.0,0.3936]
[1734211944173,0.41052355,101140.0,101130.0,0.3936]
[1734211944473,0.28942917,101140.0,101130.0,0.3936]
[1734211944680,0.35099836,101140.0,101130.0,0.45516919]
[1734211945183,0.35099836,101140.0,101130.0,0.3936]
[1734211945773,0.26223109,101140.0,101130.0,0.3608]
[1734211947275,0.32380028,101140.0,101130.0,0.3608]
[1734211947470,0.049443,101130.0,101120.0,0.441844]
[1734211947671,0.1997235,101130.0,101120.0,0.441844]
[1734211947870,0.1997235,101130.0,101120.0,0.3608]
[1734211948073,0.1502805,101130.0,101110.0,0.67905102]
[1734211948283,0.1997285,101120.0,101110.0,0.74062021]
[1734211948579,0.1997285,101120.0,101110.0,0.67905102]
[1734211948580,0.17258638,101120.0,101110.0,0.67905102]
[1734211948783,0.5605285,101120.0,101110.0,0.0328]
[1734211949078,0.3493524,101120.0,101110.0,0.3936]
[1734211949278,0.7101524,101120.0,101110.0,0.09436919]
[1734211949769,0.7101524,101120.0,101110.0,0.0328]
[1734211950471,0.5916285,101120.0,101110.0,0.0328]
[1734211950773,0.5916285,101120.0,101110.0,0.082253]
[1734211951777,0.65319769,101120.0,101110.0,0.082253]
[1734211952079,0.5916285,101120.0,101110.0,0.082253]
[1734211952269,0.65319769,101120.0,101110.0,0.049453]
[1734211954484,0.56448638,101120.0,101110.0,0.049453]
[1734211954678,0.50291719,101120.0,101110.0,0.049453]
[1734211954977,0.60156043,101120.0,101110.0,0.049953]
[1734211955281,0.66312962,101120.0,101110.0,0.049953]
[1734211955481,0.57441831,101120.0,101110.0,0.049953]
[1734211957987,0.66312962,101120.0,101110.0,0.0005]
[1734211958480,0.049453,101110.0,101100.0,0.00010209]
[1734211958683,0.68669171,101110.0,101100.0,0.00010209]
[1734211958880,0.74364642,101110.0,101100.0,0.00010209]
[1734211959479,0.62512252,101110.0,101100.0,0.00010209]
[1734211960872,0.62512252,101110.0,101100.0,0.00060209]
[1734211961875,0.62512252,101110.0,101100.0,0.00010209]
[1734211962784,0.62512252,101110.0,101100.0,0.00060209]
[1734211963889,0.62512252,101110.0,101100.0,0.00010209]
[1734211964889,0.62512252,101110.0,101100.0,0.00060209]
[1734211965887,0.62512252,101110.0,101100.0,0.00010209]
[1734211966285,0.26432252,101110.0,101100.0,0.00010209]
[1734211966488,0.62512252,101110.0,101100.0,0.00010209]
[1734211967483,0.74364642,101110.0,101100.0,0.00010209]
[1734211969886,0.65514609,101110.0,101100.0,0.00010209]
[1734211970678,0.67492376,101110.0,101100.0,0.00010209]
[1734211970887,0.31412376,101110.0,101100.0,0.00010209]
[1734211971188,0.67492376,101110.0,101100.0,0.00010209]
[1734211972006,0.82321622,101110.0,101100.0,0.00010209]
[1734211972296,0.67492376,101110.0,101100.0,0.00010209]
[1734211972499,0.82321622,101110.0,101100.0,0.00010209]
[1734211974393,0.70469232,101110.0,101100.0,0.00010209]
[1734211975395,0.76626151,101110.0,101100.0,0.00010209]
[1734211975594,0.049463,101090.0,101080.0,0.26620002]
[1734211975797,0.19979059,101090.0,101080.0,0.0307]
[1734211976106,0.31813513,101090.0,101080.0,0.0307]
[1734211976493,0.31823092,101090.0,101080.0,0.0005]
[1734211976695,0.31823092,101090.0,101070.0,0.0317]
[1734211976696,0.8593788,101090.0,101070.0,0.0317]
[1734211976892,0.049473,101070.0,101060.0,0.31737602]
[1734211977091,0.19983544,101070.0,101060.0,0.31737602]
[1734211977392,0.19983544,101070.0,101060.0,0.081376]
[1734211979497,0.049478,101060.0,101050.0,0.74003452]
[1734211979702,0.049478,101060.0,101050.0,0.77293452]
[1734211979703,0.11104719,101060.0,101050.0,0.77293452]
[1734211979996,0.11104719,101060.0,101050.0,0.71136533]
[1734211980501,0.53341638,101060.0,101050.0,0.30108433]
[1734211980700,0.65390963,101060.0,101050.0,0.0636]
[1734211981003,0.7722974,101060.0,101050.0,0.0307]
[1734211981503,0.68350415,101060.0,101050.0,0.0307]
[1734211981704,0.77219197,101060.0,101050.0,0.0307]
[1734211982006,0.049482,101050.0,101040.0,0.410285]
[1734211982200,0.19973901,101050.0,101040.0,0.410285]
[1734211982592,0.56053901,101050.0,101040.0,0.049485]
[1734211982794,0.47193165,101050.0,101040.0,0.049485]
[1734211983707,0.11113165,101050.0,101040.0,0.049485]
[1734211984995,0.11113165,101050.0,101040.0,0.049985]
[1734211987104,0.12110214,101050.0,101040.0,0.049985]
[1734211987905,0.01005095,101050.0,101040.0,0.47235419]
[1734211988108,0.07162014,101050.0,101040.0,0.50465419]
[1734211990707,0.3608,101070.0,101040.0,0.86622338]
[1734211990906,0.69972352,101080.0,101070.0,0.049473]
[1734211991110,0.64290494,101080.0,101070.0,0.049473]
[1734211991302,0.49264793,101080.0,101070.0,0.079673]
[1734211991503,0.47332491,101080.0,101070.0,0.079673]
[1734211991713,0.53340938,101080.0,101070.0,0.079673]
[1734211991912,0.47184019,101080.0,101070.0,0.079673]
[1734211992102,0.53340938,101080.0,101070.0,0.112973]
[1734211992617,0.17260938,101080.0,101070.0,0.112973]
[1734211992813,0.11104019,101080.0,101070.0,0.112973]
[1734211993318,0.12074284,101080.0,101070.0,0.112973]
[1734211994115,0.00970265,101080.0,101070.0,0.53534219]
[1734211994319,0.62994478,101100.0,101070.0,0.53534219]
[1734211994614,0.50392819,101100.0,101090.0,0.049463]
[1734211994811,0.51374262,101100.0,101090.0,0.049463]
[1734211995011,0.51324262,101100.0,101090.0,0.049463]
[1734211995713,0.53272937,101100.0,101090.0,0.049463]
[1734211995910,0.53322937,101100.0,101090.0,0.049463]
[1734211996303,0.46428362,101100.0,101090.0,0.049463]
[1734211996509,0.10348362,101100.0,101090.0,0.049463]
[1734211996705,0.10348362,101100.0,101090.0,0.081763]
[1734211996913,0.21401081,101100.0,101090.0,0.081763]
[1734211997211,0.049464,101090.0,101080.0,0.049466]
[1734211997422,0.11103319,101090.0,101080.0,0.049466]
[1734212000903,0.049464,101090.0,101080.0,0.47183519]
[1734212001709,0.049464,101090.0,101080.0,0.11103519]
[1734212002017,0.049464,101090.0,101080.0,0.47183519]
[1734212002213,0.29844902,101100.0,101090.0,0.049463]
[1734212002414,0.65924902,101100.0,101090.0,0.049463]
[1734212003116,0.72031821,101100.0,101090.0,0.049463]
[1734212004018,0.72081821,101100.0,101090.0,0.049463]
[1734212005012,0.72031821,101100.0,101090.0,0.049463]
[1734212005914,0.72081821,101100.0,101090.0,0.049463]
[1734212006909,0.72031821,101100.0,101090.0,0.049463]
[1734212007922,0.65924902,101100.0,101090.0,0.049463]
[1734212008218,0.72081821,101100.0,101090.0,0.049463]
[1734212009011,0.72031821,101100.0,101090.0,0.049463]
[1734212009924,0.72081821,101100.0,101090.0,0.049463]
[1734212010923,0.72031821,101100.0,101090.0,0.049463]
[1734212011921,0.72081821,101100.0,101090.0,0.049463]
[1734212012618,0.24890322,101100.0,101090.0,0.47183219]
[1734212012821,0.04191443,101100.0,101090.0,0.47183219]
[1734212013120,0.04191443,101100.0,101090.0,0.53503219]
[1734212013121,0.04141443,101100.0,101090.0,0.53503219]
[1734212015725,0.00981443,101100.0,101090.0,0.53503219]
[1734212015925,0.31994279,101110.0,101090.0,0.53503219]
[1734212016224,0.31994279,101110.0,101100.0,0.47182719]
[1734212016614,0.32000892,101110.0,101100.0,0.47182719]
[1734212017017,0.23084177,101110.0,101100.0,0.47182719]
[1734212017417,0.31950908,101110.0,101100.0,0.47182719]
[1734212017626,0.37877244,101110.0,101100.0,0.47182719]
[1734212018020,0.37927244,101110.0,101100.0,0.47182719]
[1734212019026,0.37877244,101110.0,101100.0,0.47182719]
[1734212019420,0.38874745,101110.0,101100.0,0.11102719]
[1734212019615,0.27035968,101110.0,101100.0,0.47182719]
[1734212022725,0.44831064,101110.0,101100.0,0.47182719]
[1734212026221,0.36695664,101110.0,101100.0,0.53339638]
[1734212026528,0.30749905,101110.0,101100.0,0.53339638]
[1734212026721,0.24841993,101110.0,101100.0,0.7693964]
[1734212030723,0.24841993,101110.0,101100.0,0.53339638]
[1734212031424,0.22113757,101110.0,101100.0,0.28545802]
[1734212031632,0.049458,101100.0,101090.0,0.410261]
[1734212031925,0.3774022,101100.0,101090.0,0.47183019]
[1734212032126,0.34693301,101100.0,101090.0,0.47183019]
[1734212032525,0.34693301,101100.0,101090.0,0.11103019]
[1734212032526,0.22848867,101100.0,101090.0,0.11103019]
[1734212034531,0.32588163,101100.0,101090.0,0.11103019]
[1734212034720,0.14793067,101100.0,101090.0,0.11103019]
[1734212035032,0.14793067,101100.0,101090.0,0.17523019]
[1734212035232,0.26639596,101100.0,101090.0,0.17523019]
[1734212035426,0.14793067,101100.0,101090.0,0.17523019]
[1734212040527,0.14793067,101100.0,101090.0,0.59759938]
[1734212040730,0.20738584,101100.0,101090.0,0.77203021]
[1734212042636,0.20738584,101100.0,101090.0,1.066598]
[1734212042837,0.20738584,101100.0,101090.0,1.3616312]
[1734212043038,0.20738584,101100.0,101090.0,1.066598]
[1734212043428,0.20738584,101100.0,101090.0,1.36163784]
[1734212043629,0.20738584,101100.0,101090.0,0.77203021]
[1734212044142,0.20738584,101100.0,101090.0,1.42319846]
[1734212046038,0.15790568,101110.0,101090.0,1.54822701]
[1734212046232,0.35806574,101120.0,101100.0,0.83085977]
[1734212046435,0.14941478,101120.0,101110.0,0.53339138]
[1734212046635,0.14941478,101120.0,101110.0,0.53412219]
[1734212048129,0.14941478,101120.0,101110.0,0.77001639]
[1734212048434,0.00148411,101120.0,101110.0,0.83158558]
[1734212049135,0.18901727,101130.0,101120.0,0.049448]
[1734212049337,0.0410866,101130.0,101120.0,0.76928058]
[1734212050427,0.0410866,101130.0,101120.0,0.53338638]
[1734212052736,0.0098866,101130.0,101120.0,0.53338638]
[1734212053034,0.26167067,101140.0,101130.0,0.049443]
[1734212053235,0.26167067,101140.0,101130.0,0.47181219]
[1734212053535,0.27178922,101140.0,101130.0,0.47181219]
[1734212053932,0.27128922,101140.0,101130.0,0.47181219]
[1734212054943,0.27178922,101140.0,101130.0,0.47181219]
[1734212055444,0.12385855,101140.0,101130.0,0.47181219]
[1734212056949,0.12335855,101140.0,101130.0,0.47181219]
[1734212058243,0.12335855,101140.0,101130.0,0.47081219]
[1734212059433,0.12335855,101140.0,101130.0,0.11001219]
[1734212059641,0.48415855,101140.0,101130.0,0.11001219]
[1734212063043,0.12335855,101140.0,101130.0,0.47081219]
[1734212064551,0.049443,101130.0,101120.0,0.47181519]
[1734212064747,0.080243,101130.0,101120.0,0.47181519]
[1734212065052,0.080243,101130.0,101120.0,0.53338438]
[1734212065053,0.0308,101130.0,101120.0,0.53338438]
[1734212065245,0.12335855,101140.0,101120.0,0.53338438]
[1734212065444,0.12335855,101140.0,101130.0,0.47181219]
[1734212065837,0.09025855,101140.0,101130.0,0.47181219]
[1734212067445,0.01011855,101140.0,101130.0,0.53338138]
[1734212067648,0.59132567,101150.0,101140.0,0.049438]
[1734212067850,0.59132567,101150.0,101140.0,0.17257638]
[1734212069157,0.60137906,101150.0,101140.0,0.17257638]
[1734212069654,0.60137906,101150.0,101140.0,0.11100719]
[1734212072349,0.77697002,101150.0,101140.0,0.11100719]
[1734212072856,0.77697002,101150.0,101140.0,0.17257638]
[1734212074555,0.72753502,101150.0,101130.0,0.59938521]
[1734212074756,0.049438,101140.0,101130.0,0.6788954]
[1734212075051,0.22906867,101140.0,101130.0,0.049441]
[1734212075255,0.26096867,101140.0,101130.0,0.11101019]
[1734212075556,0.79971963,101140.0,101130.0,0.11101019]
[1734212076451,0.65178896,101140.0,101130.0,0.11101019]
[1734212076856,0.65178896,101140.0,101130.0,0.049441]
[1734212076857,0.71335815,101140.0,101130.0,0.049441]
[1734212077251,0.049443,101130.0,101120.0,0.8839946]
[1734212077458,0.22848419,101130.0,101120.0,0.8839946]
[1734212083252,0.23860984,101130.0,101120.0,0.8839946]
[1734212084658,0.66097903,101130.0,101120.0,0.41217941]
[1734212084853,0.6907888,101130.0,101120.0,0.17628521]
[1734212085050,0.6907888,101130.0,101110.0,0.9466996]
[1734212085254,0.19764949,101120.0,101110.0,0.9466996]
[1734212089368,0.049448,101120.0,101110.0,0.9466996]
[1734212091966,0.23867314,101130.0,101120.0,0.049448]
[1734212092163,0.23867314,101130.0,101120.0,0.11101719]
[1734212094066,0.4166241,101130.0,101120.0,0.11101719]
[1734212094572,0.4166241,101130.0,101120.0,0.049448]
[1734212094869,0.049448,101120.0,101110.0,0.9466996]
[1734212099176,0.049448,101120.0,101110.0,0.88513041]
[1734212099372,0.049448,101120.0,101110.0,0.9466996]
[1734212101071,0.11101719,101120.0,101110.0,0.85513041]
[1734212101374,0.65231868,101120.0,101110.0,0.17628521]
[1734212104377,0.65231868,101120.0,101110.0,0.41217941]
[1734212106786,0.19764949,101120.0,101110.0,0.70771639]
[1734212106970,0.19764949,101120.0,101110.0,0.76941639]
[1734212107170,0.11855095,101120.0,101110.0,0.76941639]
[1734212107370,0.11855095,101120.0,101110.0,1.13204292]
[1734212107572,0.32632309,101130.0,101120.0,0.049448]
[1734212107783,0.1781216,101130.0,101120.0,1.36744057]
[1734212107970,0.1781216,101130.0,101120.0,1.33627138]
[1734212109374,0.1286766,101130.0,101120.0,1.33627138]
[1734212109881,0.11855095,101130.0,101120.0,1.39784057]
[1734212112587,0.3260105,101140.0,101120.0,1.39784057]
[1734212112788,0.3260105,101140.0,101130.0,0.7133781]
[1734212114282,0.38757969,101140.0,101130.0,0.7133781]
[1734212114981,0.38757969,101140.0,101130.0,0.65180891]
[1734212115188,0.38757969,101140.0,101130.0,0.7133781]
[1734212117383,0.30094739,101140.0,101130.0,0.17666591]
[1734212117690,0.30094739,101140.0,101120.0,0.64600917]
[1734212117691,0.049443,101130.0,101120.0,0.46187508]
[1734212117879,0.62081727,101130.0,101120.0,0.46187508]
[1734212118279,0.62081727,101130.0,101120.0,0.22611291]
[1734212118785,0.76901876,101130.0,101120.0,0.049447]
[1734212119286,0.76901876,101130.0,101120.0,0.22611291]
[1734212120884,0.65061368,101130.0,101120.0,0.22611291]
[1734212121982,0.65061368,101130.0,101110.0,0.85577908]
[1734212121983,0.049448,101120.0,101110.0,0.85577908]
[1734212122181,0.22944604,101120.0,101110.0,0.85577908]
[1734212122383,0.59024604,101120.0,101110.0,0.46187908]
[1734212122591,0.77174753,101120.0,101110.0,0.22611691]
[1734212122791,0.86361672,101120.0,101110.0,0.17666591]
[1734212123194,0.80204753,101120.0,101110.0,0.17666591]
[1734212124596,0.049453,101110.0,101100.0,0.88573575]
[1734212129791,0.05913227,101110.0,101100.0,0.88573575]
[1734212130195,0.05913227,101110.0,101100.0,0.52493575]
[1734212130401,0.05913227,101110.0,101100.0,0.88573575]
[1734212133393,0.11842885,101120.0,101110.0,0.049453]
[1734212133601,0.11842885,101120.0,101110.0,0.68043653]
[1734212133792,0.11842885,101120.0,101110.0,0.71283653]
[1734212140604,0.11842885,101120.0,101110.0,0.9485987]
[1734212140794,0.15911853,101130.0,101120.0,0.049448]
[1734212140997,0.15911853,101130.0,101120.0,0.94583514]
[1734212141299,0.15911853,101130.0,101120.0,0.88426595]
[1734212146813,0.12851853,101130.0,101120.0,0.88426595]
[1734212160318,0.12851853,101130.0,101120.0,0.70757936]
[1734212163814,0.12851853,101130.0,101120.0,0.64601017]
[1734212164016,0.38773221,101130.0,101120.0,0.46200434]
[1734212164322,0.44725432,101130.0,101120.0,0.22624217]
[1734212170716,0.44725432,101130.0,101120.0,0.28781136]
[1734212171625,0.33624213,101130.0,101120.0,0.28781136]
[1734212171825,0.39781132,101130.0,101120.0,0.28781136]
[1734212172027,0.39781132,101130.0,101120.0,0.52357353]
[1734212172521,0.26930336,101130.0,101120.0,0.22624217]
[1734212172717,0.44725432,101130.0,101120.0,0.22624217]
[1734212174328,0.26930336,101130.0,101120.0,0.22624217]
[1734212175022,0.26930336,101130.0,101120.0,0.32624217]
[1734212176427,0.26930336,101130.0,101120.0,0.56200434]
[1734212177621,0.20773417,101130.0,101120.0,0.56200434]
[1734212177922,0.33624213,101130.0,101120.0,0.81018055]
[1734212178112,0.27683837,101130.0,101120.0,1.11024272]
[1734212178318,0.27683837,101130.0,101120.0,1.04867353]
[1734212178517,0.21754386,101130.0,101120.0,1.46921043]
[1734212179226,0.12863688,101130.0,101120.0,1.53065367]
[1734212181521,0.21754236,101130.0,101120.0,1.53065367]
[1734212181924,0.20745254,101130.0,101120.0,1.53065367]
[1734212182123,0.20745179,101130.0,101120.0,1.53065367]
[1734212182631,0.20745179,101130.0,101120.0,1.2948915]
[1734212183327,0.20745179,101130.0,101120.0,1.29464346]
[1734212184625,0.08890459,101130.0,101120.0,1.29464346]
[1734212184818,0.20745179,101130.0,101120.0,1.29464346]
[1734212185222,0.20745179,101130.0,101120.0,1.53021849]
[1734212186032,0.20745179,101130.0,101120.0,1.54009725]
[1734212186532,0.08890459,101130.0,101120.0,1.54009725]
[1734212186930,0.08890459,101130.0,101120.0,1.41695887]
[1734212187124,0.08890459,101130.0,101120.0,1.4686493]
[1734212187324,0.20745179,101130.0,101120.0,1.4686493]
[1734212187631,0.20745179,101130.0,101120.0,1.53021849]
[1734212188227,0.08890459,101130.0,101120.0,1.53021849]
[1734212192333,0.20745179,101130.0,101120.0,1.53021849]
[1734212192637,0.08890459,101130.0,101120.0,1.4043493]
[1734212192841,0.20745179,101130.0,101120.0,1.4043493]
[1734212193234,0.20745179,101130.0,101120.0,1.10196001]
[1734212193836,0.20745179,101130.0,101120.0,0.80739222]
[1734212194139,0.20745179,101130.0,101120.0,0.98404438]
[1734212194534,0.20745179,101130.0,101120.0,0.98404552]
[1734212194729,0.20745179,101130.0,101120.0,0.80739222]
[1734212198643,0.20745179,101130.0,101120.0,1.10196001]
[1734212200545,0.20745179,101130.0,101120.0,1.40464331]
[1734212201638,0.20745179,101130.0,101120.0,1.40468606]
[1734212201639,0.1185472,101130.0,101120.0,1.40468606]
[1734212202038,0.20745157,101130.0,101120.0,1.40468606]
[1734212202547,0.1185472,101130.0,101120.0,1.40468606]
[1734212203149,0.1185472,101130.0,101120.0,1.40462803]
[1734212205044,0.20747563,101130.0,101120.0,1.40462803]
[1734212205247,0.1185472,101130.0,101120.0,1.40462803]
[1734212205652,0.26674869,101130.0,101120.0,1.40462803]
[1734212206243,0.1185472,101130.0,101120.0,1.40462803]
[1734212206445,0.26674869,101130.0,101120.0,1.169053]
[1734212207151,0.37776088,101130.0,101120.0,0.98224809]
[1734212207451,0.25921368,101130.0,101120.0,0.56170696]
[1734212207649,0.43716464,101130.0,101120.0,0.56170696]
[1734212209445,0.32615245,101130.0,101120.0,0.62327615]
[1734212211547,0.32615245,101130.0,101120.0,1.04564534]
[1734212211747,0.26676918,101130.0,101120.0,1.07594534]
[1734212211940,0.26676918,101130.0,101120.0,0.89925066]
[1734212212146,0.20748823,101130.0,101120.0,1.49639875]
[1734212212547,0.20748904,101130.0,101120.0,1.49639875]
[1734212213553,0.20748904,101130.0,101120.0,1.49636524]
[1734212215561,0.11856769,101130.0,101120.0,1.49636524]
[1734212216648,0.11856769,101130.0,101120.0,1.55793443]
[1734212216856,0.0889216,101130.0,101120.0,1.39087562]
[1734212217055,0.0889216,101130.0,101120.0,1.32930643]
[1734212217262,0.20748929,101140.0,101130.0,0.049443]
[1734212217450,0.20748929,101140.0,101130.0,1.10051867]
[1734212218460,0.20748929,101140.0,101130.0,1.33567189]
[1734212221161,0.20748929,101140.0,101130.0,1.3340877]
[1734212222051,0.0889216,101140.0,101130.0,1.3340877]
[1734212223458,0.0889216,101140.0,101130.0,1.0331251]
[1734212223957,0.20748929,101140.0,101130.0,0.73906541]
[1734212224457,0.21203688,101140.0,101130.0,0.73906541]
[1734212224661,0.15046769,101140.0,101130.0,0.73906541]
[1734212227160,0.23928941,101140.0,101130.0,0.91531512]
[1734212227759,0.23928879,101140.0,101130.0,0.91531512]
[1734212230055,0.23928879,101140.0,101130.0,0.55451512]
[1734212230255,0.23928879,101140.0,101130.0,0.91531512]
[1734212231063,0.23928879,101140.0,101130.0,0.55451512]
[1734212231263,0.23928879,101140.0,101130.0,0.91531512]
[1734212231853,0.23928879,101140.0,101130.0,0.55451512]
[1734212232260,0.23928879,101140.0,101130.0,0.91531512]
[1734212239360,0.15046769,101140.0,101130.0,0.91531512]
[1734212240461,0.29866918,101140.0,101130.0,0.91531512]
[1734212240970,0.15046769,101140.0,101130.0,0.91531512]
[1734212241559,0.29866918,101140.0,101130.0,0.73906541]
[1734212246366,0.29866918,101140.0,101130.0,1.33383316]
[1734212248471,0.29866918,101140.0,101130.0,1.09867994]
[1734212249073,0.29866918,101140.0,101130.0,0.73787994]
[1734212249274,0.29866918,101140.0,101130.0,1.09867994]
[1734212250775,0.29866918,101140.0,101130.0,1.33387938]
[1734212251668,0.29866918,101140.0,101130.0,1.09867994]
[1734212252071,0.29866918,101140.0,101130.0,1.33388847]
[1734212252572,0.29866918,101140.0,101130.0,1.09867994]
[1734212253483,0.26676918,101140.0,101130.0,1.09867994]
[1734212260168,0.26676918,101140.0,101130.0,0.73787994]
[1734212260374,0.26676918,101140.0,101130.0,1.09867994]
[1734212260574,0.26676918,101140.0,101130.0,1.09826615]
[1734212263176,0.26676918,101140.0,101130.0,1.09831382]
[1734212265082,0.26676918,101140.0,101130.0,1.09806186]
[1734212265884,0.26676918,101140.0,101130.0,0.64359267]
[1734212266085,0.36406918,101140.0,101130.0,1.06596186]
[1734212266286,0.36406918,101140.0,101130.0,1.301133]
[1734212266478,0.24550149,101140.0,101130.0,1.301133]
[1734212269481,0.24550149,101140.0,101130.0,1.30132518]
[1734212270381,0.18090149,101140.0,101130.0,1.30132518]
[1734212270783,0.18090149,101140.0,101130.0,1.33332518]
[1734212273786,0.18090149,101140.0,101130.0,1.3328801]
[1734212275082,0.26684444,101140.0,101130.0,1.15927815]
[1734212275289,0.26684444,101140.0,101130.0,1.09770896]
[1734212275587,0.26684444,101140.0,101130.0,1.45107145]
[1734212276488,0.11864295,101140.0,101130.0,1.45107145]
[1734212276788,0.11864295,101140.0,101130.0,1.09770896]
[1734212278183,0.11864295,101140.0,101130.0,1.09778468]
[1734212280587,0.20760549,101140.0,101130.0,1.45114717]
[1734212281388,0.20760549,101140.0,101130.0,1.44926245]
[1734212282691,0.20760549,101140.0,101130.0,1.09589996]
[1734212287692,0.20760549,101140.0,101130.0,0.73509996]
[1734212287892,0.20760549,101140.0,101130.0,1.45669996]
[1734212293187,0.20760549,101140.0,101130.0,1.51826915]
[1734212293387,0.08896254,101140.0,101130.0,1.57757195]
[1734212293605,0.08891406,101150.0,101140.0,0.049438]
[1734212293805,0.11864295,101160.0,101150.0,0.049434]
[1734212294100,0.11864295,101160.0,101150.0,1.32757977]
[1734212294304,0.11864295,101160.0,101150.0,1.09302488]
[1734212294497,0.11864295,101160.0,101150.0,1.32746083]
[1734212295396,0.31071309,101170.0,101160.0,0.049429]
[1734212295597,0.31071309,101170.0,101160.0,0.64756486]
[1734212296294,0.31021309,101170.0,101160.0,0.64756486]
[1734212296897,0.31021309,101170.0,101160.0,0.70913405]
[1734212297291,0.31071309,101170.0,101160.0,0.70913405]
[1734212297793,0.31071309,101170.0,101160.0,0.53336738]
[1734212298494,0.31021309,101170.0,101160.0,0.53336738]
[1734212299401,0.1625116,101170.0,101160.0,0.53336738]
[1734212300202,0.1625116,101170.0,101160.0,0.47179819]
[1734212302307,0.1620116,101170.0,101160.0,0.47179819]
[1734212302996,0.16052839,101170.0,101160.0,0.47179819]
[1734212305101,0.16052839,101170.0,101160.0,0.53336738]
[1734212306700,0.15064295,101170.0,101160.0,0.53336738]
[1734212306900,0.11864295,101180.0,101170.0,0.049424]
[1734212307200,0.15407295,101190.0,101180.0,0.049419]
[1734212307406,0.15407295,101190.0,101180.0,0.53335738]
[1734212307800,0.15407295,101190.0,101180.0,0.47178819]
[1734212308202,0.1638227,101190.0,101180.0,0.47178819]
[1734212308395,0.1609927,101190.0,101180.0,0.47178819]
[1734212309301,0.04234975,101190.0,101180.0,0.47178819]
[1734212310310,0.04284975,101190.0,101180.0,0.47178819]
[1734212311311,0.04234975,101190.0,101180.0,0.47178819]
[1734212312410,0.04284975,101190.0,101180.0,0.47178819]
[1734212313406,0.04234975,101190.0,101180.0,0.47178819]
[1734212314413,0.04284975,101190.0,101180.0,0.47178819]
[1734212315203,0.04284975,101190.0,101180.0,0.53335738]
[1734212316304,0.04234975,101190.0,101180.0,0.53335738]
[1734212316910,0.04234975,101190.0,101180.0,0.47178819]
[1734212319505,0.1609927,101190.0,101180.0,0.47178819]
[1734212319907,0.04234975,101190.0,101180.0,0.47178819]
[1734212320418,0.1609927,101190.0,101180.0,0.47178819]
[1734212322513,0.049419,101180.0,101170.0,0.618796]
[1734212322715,0.082119,101180.0,101170.0,0.11099219]
[1734212322908,0.29393114,101180.0,101170.0,0.11099219]
[1734212323104,0.23236195,101180.0,101170.0,0.11099219]
[1734212323310,0.59316195,101180.0,101170.0,0.11099219]
[1734212323911,0.65473114,101180.0,101170.0,0.11099219]
[1734212327323,0.65473114,101180.0,101170.0,0.049423]
[1734212329718,0.65473114,101180.0,101160.0,0.41020895]
[1734212329719,0.71630033,101180.0,101160.0,0.41020895]
[1734212329923,0.50429319,101170.0,101160.0,0.41020895]
[1734212331339,0.049429,101160.0,101150.0,0.049431]
[1734212331526,0.50469819,101160.0,101150.0,0.049431]
[1734212331921,0.443129,101160.0,101150.0,0.049431]
[1734212333128,0.50469819,101160.0,101150.0,0.049431]
[1734212336028,0.049434,101150.0,101140.0,0.82044695]
[1734212336234,0.14210319,101150.0,101140.0,0.45964695]
[1734212336432,0.14210319,101150.0,101140.0,0.049938]
[1734212336828,0.14210319,101150.0,101140.0,0.11150719]
[1734212337424,0.14210319,101150.0,101140.0,0.11100719]
[1734212337628,0.14210319,101150.0,101140.0,0.47180719]
[1734212337834,0.14210319,101150.0,101140.0,0.11100719]
[1734212338431,0.14210319,101150.0,101140.0,0.11150719]
[1734212339427,0.14210319,101150.0,101140.0,0.11100719]
[1734212340333,0.080534,101150.0,101140.0,0.11100719]
[1734212342037,0.61535559,101160.0,101150.0,0.049434]
[1734212342038,0.45292739,101160.0,101150.0,0.049434]
[1734212342238,0.51449658,101160.0,101150.0,0.049434]
[1734212345343,0.63268559,101160.0,101150.0,0.049434]
[1734212349432,0.049434,101150.0,101140.0,0.50510619]
[1734212350334,0.049434,101150.0,101140.0,0.68087919]
[1734212350546,0.78088808,101160.0,101150.0,0.049434]
[1734212351340,0.66269907,101160.0,101150.0,0.049434]
[1734212351934,0.66269907,101160.0,101150.0,0.11100319]
[1734212352338,0.69244854,101160.0,101150.0,0.225207]
[1734212354341,0.84064231,101160.0,101150.0,0.225207]